fUST/lending_fUST_20250602
["ID","MTS","AMOUNT","RATE_DAILY","PERIOD"]
[363670239,1748807436203,-430.0,0.00016712,2]
[363670240,1748807436212,-500.0,0.00016712,2]
[363670241,1748807436221,-198.0,0.00016739,2]
[363670242,1748807436231,-155.12556543,0.00016739,2]
[363670243,1748807436240,-501.48568543,0.00016739,2]
[363670244,1748807436250,-151.3680784,0.00016739,2]
[363670245,1748807436259,-151.0,0.00016739,2]
[363670246,1748807436268,-151.0,0.00016767,2]
[363670247,1748807436278,-248.08417531,0.00016794,2]
[363670248,1748807436287,-3579.38185223,0.000169,2]
[363670249,1748807436298,-167.95035286,0.00016932,2]
[363670250,1748807436307,-500.0,0.00016932,2]
[363670251,1748807436318,-566.49146546,0.00016932,2]
[363670252,1748807436327,-500.0,0.00016932,2]
[363670253,1748807436337,-500.0,0.00016932,2]
[363670254,1748807436346,-500.0,0.00016932,2]
[363670255,1748807436355,-500.0,0.00016948,2]
[363670256,1748807436364,-500.0,0.00016948,2]
[363670257,1748807436374,-203.32136593,0.00016954,2]
[363670258,1748807436383,-500.0,0.00016954,2]
[363670259,1748807436394,-500.0,0.00016954,2]
[363670260,1748807436404,-186.39740406,0.00016982,2]
[363670261,1748807436413,-500.0,0.00016982,2]
[363670262,1748807436422,-500.0,0.00016982,2]
[363670263,1748807436431,-430.0,0.00016986,2]
[363670264,1748807436439,-518.60808731,0.00016986,2]
[363670265,1748807436447,-430.0,0.00016986,2]
[363670266,1748807436455,-430.0,0.00016986,2]
[363670267,1748807436464,-430.0,0.00016986,2]
[363670268,1748807436474,-430.0,0.00016986,2]
[363670269,1748807436484,-430.0,0.00016986,2]
[363670270,1748807436494,-430.0,0.00016986,2]
[363670271,1748807436503,-502.74879491,0.00016986,2]
[363670272,1748807436512,-430.0,0.00016986,2]
[363670273,1748807436522,-430.0,0.00016986,2]
[363670274,1748807436531,-430.0,0.00016986,2]
[363670275,1748807436540,-430.0,0.00016986,2]
[363670276,1748807436550,-430.0,0.00016986,2]
[363670277,1748807436559,-430.0,0.00016986,2]
[363670278,1748807436569,-430.0,0.00016986,2]
[363670279,1748807436578,-430.0,0.00016986,2]
[363670280,1748807436587,-500.0,0.00016986,2]
[363670281,1748807436597,-430.0,0.00016986,2]
[363670282,1748807436606,-430.0,0.00016986,2]
[363670283,1748807436615,-430.0,0.00016986,2]
[363670284,1748807436625,-41.58183067,0.00016986,2]
[363670328,1748807437882,-430.0,0.00016438,2]
[363670329,1748807437892,-430.0,0.00016438,2]
[363670330,1748807437901,-430.0,0.00016712,2]
[363670331,1748807437911,-388.41816933,0.00016986,2]
[363670332,1748807437920,-430.0,0.00016986,2]
[363670333,1748807437929,-430.0,0.00016986,2]
[363670334,1748807437938,-347.03578636,0.00016986,2]
[363670335,1748807437947,-430.0,0.00016986,2]
[363670336,1748807437956,-430.0,0.00016986,2]
[363670337,1748807437966,-430.0,0.00016986,2]
[363670338,1748807437975,-624.76,0.00016986,2]
[363670339,1748807437984,-430.0,0.00016986,2]
[363670340,1748807437994,-430.0,0.00016986,2]
[363670341,1748807438004,-459.63,0.00016986,2]
[363670342,1748807438013,-430.0,0.00016986,2]
[363670343,1748807438023,-430.0,0.00016986,2]
[363670345,1748807438032,-430.0,0.00016986,2]
[363670347,1748807438042,-430.0,0.00016986,2]
[363670349,1748807438051,-430.0,0.00016986,2]
[363670351,1748807438061,-430.0,0.00016986,2]
[363670353,1748807438071,-430.0,0.00016986,2]
[363670355,1748807438080,-430.0,0.00016986,2]
[363670357,1748807438090,-438.99,0.00016986,2]
[363670359,1748807438099,-430.0,0.00016986,2]
[363670361,1748807438109,-430.0,0.00016986,2]
[363670363,1748807438119,-430.0,0.00016986,2]
[363670365,1748807438128,-430.0,0.00016986,2]
[363670367,1748807438137,-430.0,0.00016986,2]
[363670369,1748807438147,-430.0,0.00016986,2]
[363670371,1748807438156,-430.0,0.00016986,2]
[363670373,1748807438166,-430.0,0.00016986,2]
[363670375,1748807438175,-430.0,0.00016986,2]
[363670377,1748807438185,-430.0,0.00016986,2]
[363670379,1748807438194,-430.0,0.00016986,2]
[363670381,1748807438203,-430.0,0.00016986,2]
[363670383,1748807438213,-339.82707495,0.00016986,2]
[363670385,1748807438223,-430.0,0.00016986,2]
[363670387,1748807438233,-744.51,0.00016986,2]
[363670389,1748807438242,-635.39,0.00016986,2]
[363670391,1748807438251,-430.0,0.00016986,2]
[363670393,1748807438261,-430.0,0.00016986,2]
[363670395,1748807438270,-430.0,0.00016986,2]
[363670397,1748807438279,-430.0,0.00016986,2]
[363670399,1748807438289,-838.7,0.00016986,2]
[363670401,1748807438300,-1060.09,0.00016986,2]
[363670403,1748807438312,-430.0,0.00016986,2]
[363670405,1748807438321,-430.0,0.00016986,2]
[363670407,1748807438331,-798.82,0.00016986,2]
[363670409,1748807438340,-454.4,0.00016986,2]
[363670411,1748807438350,-208.74,0.00016986,2]
[363670413,1748807438359,-430.0,0.00016986,2]
[363670415,1748807438369,-1014.48,0.00016986,2]
[363670417,1748807438378,-430.0,0.00016986,2]
[363670419,1748807438388,-488.15,0.00016986,2]
[363670421,1748807438397,-783.73,0.00016986,2]
[363670423,1748807438407,-662.27,0.00016986,2]
[363670425,1748807438417,-430.0,0.00016986,2]
[363670427,1748807438427,-375.68,0.00016986,2]
[363670429,1748807438437,-430.0,0.00016986,2]
[363670431,1748807438446,-430.0,0.00016986,2]
[363670433,1748807438456,-159.44831569,0.00017007,2]
[363670434,1748807438466,-500.0,0.00017019,2]
[363670435,1748807438475,-500.0,0.00017019,2]
[363670436,1748807438485,-500.0,0.00017019,2]
[363670437,1748807438496,-500.0,0.00017023,2]
[363670438,1748807438507,-500.0,0.00017036,2]
[363670439,1748807438518,-500.0,0.00017036,2]
[363670440,1748807438528,-506.02040442,0.00017089,2]
[363670441,1748807438537,-500.0,0.00017089,2]
[363670442,1748807438547,-500.0,0.00017095,2]
[363670443,1748807438557,-3579.38185196,0.00017141,2]
[363670444,1748807438567,-500.0,0.00017189,2]
[363670445,1748807438576,-430.0,0.0001726,2]
[363670446,1748807438585,-430.0,0.0001726,2]
[363670447,1748807438595,-430.0,0.0001726,2]
[363670448,1748807438605,-430.0,0.0001726,2]
[363670449,1748807438614,-430.0,0.0001726,2]
[363670450,1748807438624,-430.0,0.0001726,2]
[363670451,1748807438634,-430.0,0.0001726,2]
[363670452,1748807438643,-430.0,0.0001726,2]
[363670453,1748807438654,-370.45,0.0001726,2]
[363670454,1748807438665,-430.0,0.0001726,2]
[363670455,1748807438674,-430.0,0.0001726,2]
[363670456,1748807438685,-430.0,0.0001726,2]
[363670457,1748807438695,-430.0,0.0001726,2]
[363670458,1748807438808,-430.0,0.0001726,2]
[363670459,1748807438819,-430.0,0.0001726,2]
[363670460,1748807438829,-624.76,0.0001726,2]
[363670461,1748807438840,-430.0,0.0001726,2]
[363670462,1748807438850,-430.0,0.0001726,2]
[363670463,1748807438859,-459.63,0.0001726,2]
[363670464,1748807438869,-430.0,0.0001726,2]
[363670465,1748807438878,-289.79,0.0001726,2]
[363670466,1748807438888,-430.0,0.0001726,2]
[363670467,1748807438898,-430.0,0.0001726,2]
[363670468,1748807438907,-430.0,0.0001726,2]
[363670469,1748807438917,-430.0,0.0001726,2]
[363670470,1748807438927,-438.99,0.0001726,2]
[363670471,1748807438937,-430.0,0.0001726,2]
[363670472,1748807438946,-468.21,0.0001726,2]
[363670473,1748807438956,-430.0,0.0001726,2]
[363670474,1748807438966,-430.0,0.0001726,2]
[363670475,1748807438975,-518.79,0.0001726,2]
[363670476,1748807438985,-430.0,0.0001726,2]
[363670477,1748807438999,-477.87,0.0001726,2]
[363670478,1748807439008,-430.0,0.0001726,2]
[363670479,1748807439018,-430.0,0.0001726,2]
[363670480,1748807439027,-430.0,0.0001726,2]
[363670481,1748807439037,-430.0,0.0001726,2]
[363670482,1748807439047,-430.0,0.0001726,2]
[363670483,1748807439057,-744.51,0.0001726,2]
[363670484,1748807439067,-635.39,0.0001726,2]
[363670485,1748807439077,-430.0,0.0001726,2]
[363670486,1748807439087,-430.0,0.0001726,2]
[363670487,1748807439097,-430.0,0.0001726,2]
[363670488,1748807439106,-430.0,0.0001726,2]
[363670489,1748807439116,-838.7,0.0001726,2]
[363670490,1748807439126,-1060.09,0.0001726,2]
[363670491,1748807439136,-430.0,0.0001726,2]
[363670492,1748807439146,-535.14,0.0001726,2]
[363670493,1748807439156,-798.82,0.0001726,2]
[363670494,1748807439167,-430.0,0.0001726,2]
[363670495,1748807439177,-1014.48,0.0001726,2]
[363670496,1748807439186,-488.15,0.0001726,2]
[363670497,1748807439196,-783.73,0.0001726,2]
[363670498,1748807439206,-662.27,0.0001726,2]
[363670499,1748807439215,-430.0,0.0001726,2]
[363670500,1748807439225,-430.0,0.0001726,2]
[363670501,1748807439235,-430.0,0.0001726,2]
[363670502,1748807439245,-3579.38185196,0.00017383,2]
[363670503,1748807439255,-294.87457534,0.0001748,2]
[363670504,1748807439264,-500.0,0.0001748,2]
[363670505,1748807439274,-420.0,0.00017484,2]
[363670506,1748807439283,-420.0,0.00017486,2]
[363670507,1748807439293,-935.52355721,0.00017496,2]
[363670508,1748807439303,-510.48768727,0.00017496,2]
[363670509,1748807439313,-500.0,0.00017502,2]
[363670510,1748807439323,-1000.0,0.00017502,2]
[363670511,1748807439332,-500.0,0.0001753,2]
[363670512,1748807439342,-1000.0,0.0001753,2]
[363670513,1748807439351,-430.0,0.00017534,2]
[363670514,1748807439360,-316.41932258,0.00017534,2]
[363670515,1748807439370,-430.0,0.00017534,2]
[363670516,1748807439380,-430.0,0.00017534,2]
[363670517,1748807439390,-171.89753536,0.00017534,2]
[363670518,1748807439399,-430.0,0.00017534,2]
[363670519,1748807439408,-430.0,0.00017534,2]
[363670520,1748807439418,-430.0,0.00017534,2]
[363670521,1748807439428,-430.0,0.00017534,2]
[363670522,1748807439438,-624.76,0.00017534,2]
[363670524,1748807439448,-430.0,0.00017534,2]
[363670526,1748807439458,-459.63,0.00017534,2]
[363670528,1748807439468,-430.0,0.00017534,2]
[363670530,1748807439478,-171.70587285,0.00017534,2]
[363670532,1748807439488,-430.0,0.00017534,2]
[363670534,1748807439498,-430.0,0.00017534,2]
[363670536,1748807439508,-430.0,0.00017534,2]
[363670538,1748807439519,-438.99,0.00017534,2]
[363670540,1748807439530,-275.70767632,0.00017534,2]
[363670542,1748807439541,-430.0,0.00017534,2]
[363670545,1748807439553,-522.22,0.00017534,2]
[363670548,1748807439564,-430.0,0.00017534,2]
[363670551,1748807439574,-430.0,0.00017534,2]
[363670555,1748807439584,-430.0,0.00017534,2]
[363670557,1748807439594,-430.0,0.00017534,2]
[363670558,1748807439604,-430.0,0.00017534,2]
[363670560,1748807439615,-744.51,0.00017534,2]
[363670562,1748807439625,-635.39,0.00017534,2]
[363670563,1748807439634,-430.0,0.00017534,2]
[363670565,1748807439644,-430.0,0.00017534,2]
[363670567,1748807439654,-539.65,0.00017534,2]
[363670568,1748807439664,-430.0,0.00017534,2]
[363670570,1748807439674,-838.7,0.00017534,2]
[363670572,1748807439684,-1060.09,0.00017534,2]
[363670573,1748807439694,-798.82,0.00017534,2]
[363670575,1748807439704,-430.0,0.00017534,2]
[363670576,1748807439717,-1014.48,0.00017534,2]
[363670578,1748807439727,-488.15,0.00017534,2]
[363670580,1748807439737,-783.73,0.00017534,2]
[363670581,1748807439747,-662.27,0.00017534,2]
[363670583,1748807439759,-430.0,0.00017534,2]
[363670585,1748807439769,-430.0,0.00017534,2]
[363670586,1748807439778,-500.0,0.00017566,2]
[363670587,1748807439790,-1000.0,0.0001757,7]
[363670588,1748807439802,-1000.0,0.0001757,2]
[363670589,1748807439812,-1000.0,0.0001757,7]
[363670590,1748807439822,-1000.0,0.0001757,2]
[363670591,1748807439832,-1680.0,0.00017571,2]
[363670592,1748807439842,-1000.0,0.00017573,7]
[363670593,1748807439851,-1000.0,0.00017573,2]
[363670594,1748807439861,-1000.0,0.00017582,2]
[363670595,1748807439872,-1000.0,0.00017582,2]
[363670596,1748807439883,-1000.0,0.00017582,2]
[363670597,1748807439893,-1000.0,0.00017582,2]
[363670598,1748807439903,-1000.0,0.00017582,2]
[363670599,1748807439913,-1000.0,0.00017582,2]
[363670601,1748807439922,-1000.0,0.00017582,2]
[363670603,1748807439931,-1000.0,0.00017582,7]
[363670605,1748807439942,-1000.0,0.00017582,7]
[363670607,1748807439951,-1000.0,0.00017582,7]
[363670609,1748807439961,-1000.0,0.00017582,7]
[363670611,1748807439971,-1000.0,0.00017582,7]
[363670613,1748807439981,-1000.0,0.00017582,7]
[363670614,1748807439992,-1000.0,0.00017582,7]
[363670615,1748807440002,-1000.0,0.00017582,7]
[363670616,1748807440012,-1000.0,0.00017613,2]
[363670617,1748807440022,-1000.0,0.00017622,7]
[363670618,1748807440032,-3579.38185196,0.00017624,2]
[363670619,1748807440042,-5099.74,0.00017798,3]
[363670620,1748807440052,-160.0,0.00017807,2]
[363670621,1748807440062,-430.0,0.00017808,2]
[363670622,1748807440071,-525.61774497,0.00017808,2]
[363670623,1748807440081,-430.0,0.00017808,2]
[363670624,1748807440091,-430.0,0.00017808,2]
[363670625,1748807440102,-481.63,0.00017808,2]
[363670626,1748807440112,-624.76,0.00017808,2]
[363670627,1748807440122,-430.0,0.00017808,2]
[363670628,1748807440132,-459.63,0.00017808,2]
[363670629,1748807440142,-430.0,0.00017808,2]
[363670630,1748807440152,-430.0,0.00017808,2]
[363670631,1748807440162,-320.0,0.00017808,2]
[363670632,1748807440172,-407.94,0.00017808,2]
[363670633,1748807440182,-438.99,0.00017808,2]
[363670634,1748807440192,-430.0,0.00017808,2]
[363670635,1748807440203,-430.0,0.00017808,2]
[363670636,1748807440213,-259.87,0.00017808,2]
[363670637,1748807440223,-430.0,0.00017808,2]
[363670638,1748807440233,-407.78,0.00017808,2]
[363670639,1748807440242,-398.81,0.00017808,2]
[363670640,1748807440252,-744.51,0.00017808,2]
[363670641,1748807440263,-635.39,0.00017808,2]
[363670642,1748807440273,-430.0,0.00017808,2]
[363670643,1748807440282,-430.0,0.00017808,2]
[363670644,1748807440292,-430.0,0.00017808,2]
[363670645,1748807440302,-838.7,0.00017808,2]
[363670646,1748807440312,-1060.09,0.00017808,2]
[363670647,1748807440321,-798.82,0.00017808,2]
[363670648,1748807440331,-430.0,0.00017808,2]
[363670649,1748807440341,-1014.48,0.00017808,2]
[363670650,1748807440350,-488.15,0.00017808,2]
[363670651,1748807440360,-783.73,0.00017808,2]
[363670652,1748807440370,-662.27,0.00017808,2]
[363670653,1748807440379,-430.0,0.00017808,2]
[363670654,1748807440389,-197.33504809,0.00017808,2]
[363670655,1748807440399,-5000.0,0.00017854,2]
[363670656,1748807440409,-3579.38185196,0.00017866,2]
[363670657,1748807440418,-500.0,0.0001805,2]
[363670658,1748807440428,-500.0,0.00018078,2]
[363670659,1748807440438,-430.0,0.00018082,2]
[363670660,1748807440448,-542.62,0.00018082,2]
[363670661,1748807440457,-624.76,0.00018082,2]
[363670662,1748807440467,-430.0,0.00018082,2]
[363670663,1748807440477,-459.63,0.00018082,2]
[363670664,1748807440486,-333.96,0.00018082,2]
[363670665,1748807440496,-541.95506335,0.00018082,2]
[363670666,1748807440505,-438.99,0.00018082,2]
[363670667,1748807440514,-430.0,0.00018082,2]
[363670668,1748807440522,-430.0,0.00018082,2]
[363670669,1748807440531,-430.0,0.00018082,2]
[363670670,1748807440540,-744.51,0.00018082,2]
[363670671,1748807440550,-635.39,0.00018082,2]
[363670672,1748807440559,-430.0,0.00018082,2]
[363670673,1748807440569,-430.0,0.00018082,2]
[363670674,1748807440579,-278.01,0.00018082,2]
[363670675,1748807440588,-838.7,0.00018082,2]
[363670676,1748807440598,-1060.09,0.00018082,2]
[363670677,1748807440607,-798.82,0.00018082,2]
[363670678,1748807440617,-430.0,0.00018082,2]
[363670679,1748807440627,-1014.48,0.00018082,2]
[363670680,1748807440636,-488.15,0.00018082,2]
[363670681,1748807440646,-783.73,0.00018082,2]
[363670682,1748807440656,-662.27,0.00018082,2]
[363670683,1748807440665,-430.0,0.00018082,2]
[363670684,1748807440675,-3579.38185196,0.00018107,2]
[363670685,1748807440685,-1109.92,0.00018107,2]
[363670686,1748807440695,-160.0,0.00018134,2]
[363670687,1748807440704,-423.51412927,0.00018134,2]
[363670688,1748807440717,-229.3709046,0.00018134,2]
[363670689,1748807440727,-212.80060342,0.00018135,2]
[363670690,1748807440737,-1129.72448895,0.00018184,2]
[363670691,1748807440748,-3579.38185196,0.00018348,2]
[363670692,1748807440758,-430.0,0.00018356,2]
[363670693,1748807440768,-624.76,0.00018356,2]
[363670694,1748807440778,-430.0,0.00018356,2]
[363670695,1748807440790,-459.63,0.00018356,2]
[363670696,1748807440801,-438.99,0.00018356,2]
[363670697,1748807440811,-430.0,0.00018356,2]
[363670698,1748807440820,-430.0,0.00018356,2]
[363670699,1748807440830,-430.0,0.00018356,2]
[363670700,1748807440840,-744.51,0.00018356,2]
[363670701,1748807440849,-635.39,0.00018356,2]
[363670702,1748807440859,-430.0,0.00018356,2]
[363670703,1748807440869,-430.0,0.00018356,2]
[363670704,1748807440880,-838.7,0.00018356,2]
[363670705,1748807440890,-1060.09,0.00018356,2]
[363670706,1748807440900,-798.82,0.00018356,2]
[363670707,1748807440910,-282.16,0.00018356,2]
[363670708,1748807440920,-1014.48,0.00018356,2]
[363670709,1748807440930,-488.15,0.00018356,2]
[363670710,1748807440940,-783.73,0.00018356,2]
[363670711,1748807440950,-662.27,0.00018356,2]
[363670712,1748807440959,-430.0,0.00018356,2]
[363670713,1748807440969,-3579.38185196,0.0001859,2]
[363670714,1748807440978,-430.0,0.0001863,2]
[363670715,1748807440988,-624.76,0.0001863,2]
[363670716,1748807440998,-530.45,0.0001863,2]
[363670717,1748807441008,-459.63,0.0001863,2]
[363670718,1748807441017,-438.99,0.0001863,2]
[363670719,1748807441027,-430.0,0.0001863,2]
[363670720,1748807441037,-430.0,0.0001863,2]
[363670721,1748807441157,-430.0,0.0001863,2]
[363670722,1748807441166,-744.51,0.0001863,2]
[363670723,1748807441176,-635.39,0.0001863,2]
[363670724,1748807441185,-430.0,0.0001863,2]
[363670725,1748807441194,-430.0,0.0001863,2]
[363670726,1748807441202,-838.7,0.0001863,2]
[363670727,1748807441211,-1060.09,0.0001863,2]
[363670728,1748807441219,-798.82,0.0001863,2]
[363670729,1748807441228,-1014.48,0.0001863,2]
[363670730,1748807441237,-488.15,0.0001863,2]
[363670731,1748807441246,-783.73,0.0001863,2]
[363670732,1748807441256,-662.27,0.0001863,2]
[363670733,1748807441266,-430.0,0.0001863,2]
[363670734,1748807441275,-3579.38185196,0.00018831,2]
[363670735,1748807441285,-1184.30697388,0.000189,2]
[363670736,1748807441295,-430.0,0.00018904,2]
[363670737,1748807441304,-624.76,0.00018904,2]
[363670738,1748807441314,-459.63,0.00018904,2]
[363670739,1748807441324,-438.99,0.00018904,2]
[363670740,1748807441334,-417.60384318,0.00018904,2]
[363670741,1748807441343,-430.0,0.00018904,2]
[363670742,1748807441353,-430.0,0.00018904,2]
[363670744,1748807441362,-744.51,0.00018904,2]
[363670745,1748807441372,-635.39,0.00018904,2]
[363670746,1748807441382,-430.0,0.00018904,2]
[363670747,1748807441391,-430.0,0.00018904,2]
[363670748,1748807441401,-838.7,0.00018904,2]
[363670749,1748807441411,-1060.09,0.00018904,2]
[363670750,1748807441420,-798.82,0.00018904,2]
[363670751,1748807441430,-1014.48,0.00018904,2]
[363670752,1748807441440,-488.15,0.00018904,2]
[363670753,1748807441449,-783.73,0.00018904,2]
[363670754,1748807441459,-662.27,0.00018904,2]
[363670755,1748807441468,-430.0,0.00018904,2]
[363670756,1748807441478,-3579.38185196,0.00019072,2]
[363670757,1748807441487,-587.0,0.00019116,2]
[363670758,1748807441498,-587.0,0.00019118,2]
[363670759,1748807441507,-160.0,0.00019177,2]
[363670760,1748807441518,-430.0,0.00019178,2]
[363670761,1748807441530,-624.76,0.00019178,2]
[363670762,1748807441540,-459.63,0.00019178,2]
[363670763,1748807441551,-438.99,0.00019178,2]
[363670764,1748807441561,-430.0,0.00019178,2]
[363670765,1748807441571,-430.0,0.00019178,2]
[363670766,1748807441581,-744.51,0.00019178,2]
[363670767,1748807441591,-500.0,0.00019178,2]
[363670768,1748807441601,-500.0,0.00019178,2]
[363670769,1748807441611,-500.0,0.00019178,2]
[363670770,1748807441621,-500.0,0.00019178,2]
[363670771,1748807441631,-562.73371435,0.00019178,2]
[363670772,1748807441641,-635.39,0.00019178,2]
[363670773,1748807441651,-430.0,0.00019178,2]
[363670774,1748807441663,-488.44,0.00019178,2]
[363670775,1748807441673,-430.0,0.00019178,2]
[363670776,1748807441682,-430.0,0.00019178,2]
[363670777,1748807441691,-430.0,0.00019178,2]
[363670778,1748807441699,-430.0,0.00019178,2]
[363670779,1748807441711,-430.0,0.00019178,2]
[363670780,1748807441722,-838.7,0.00019178,2]
[363670781,1748807441731,-1060.09,0.00019178,2]
[363670782,1748807441740,-798.82,0.00019178,2]
[363670783,1748807441749,-1014.48,0.00019178,2]
[363670784,1748807441760,-488.15,0.00019178,2]
[363670785,1748807441770,-783.73,0.00019178,2]
[363670786,1748807441778,-662.27,0.00019178,2]
[363670787,1748807441788,-430.0,0.00019178,2]
[363670788,1748807441799,-151.0,0.00019178,2]
[363670789,1748807441809,-173.899304,0.00019178,2]
[363670790,1748807441818,-156.587,0.00019233,2]
[363670791,1748807441828,-162.380719,0.00019288,2]
[363670792,1748807441840,-2010.0,0.00019308,2]
[363670793,1748807441850,-3579.38185196,0.00019314,2]
[363670794,1748807441859,-500.0,0.00019328,2]
[363670795,1748807441869,-500.0,0.00019328,2]
[363670796,1748807441879,-500.0,0.00019328,2]
[363670797,1748807441890,-500.0,0.00019328,2]
[363670798,1748807441901,-500.0,0.00019328,2]
[363670799,1748807441911,-500.0,0.00019328,2]
[363670800,1748807441921,-500.0,0.00019328,2]
[363670801,1748807441932,-500.0,0.00019328,2]
[363670802,1748807441942,-244.39267127,0.00019328,2]
[363670803,1748807441952,-500.0,0.00019328,2]
[363670804,1748807441962,-500.0,0.00019328,2]
[363670805,1748807441972,-378.7122216,0.00019328,2]
[363670806,1748807441983,-279.0715559,0.00019328,2]
[363670807,1748807441993,-500.0,0.00019328,2]
[363670808,1748807442003,-500.0,0.00019328,2]
[363670809,1748807442014,-500.0,0.00019328,2]
[363670810,1748807442024,-500.0,0.00019328,2]
[363670811,1748807442034,-500.0,0.00019328,2]
[363670812,1748807442045,-500.0,0.00019328,2]
[363670813,1748807442054,-500.0,0.00019328,2]
[363670814,1748807442063,-500.0,0.00019328,2]
[363670815,1748807442073,-500.0,0.00019328,2]
[363670816,1748807442083,-710.35711716,0.00019328,2]
[363670817,1748807442093,-710.35711716,0.00019328,2]
[363670818,1748807442103,-500.0,0.00019328,2]
[363670819,1748807442113,-710.35711716,0.00019328,2]
[363670820,1748807442122,-710.35711716,0.00019328,2]
[363670821,1748807442132,-450.0,0.00019328,2]
[363670822,1748807442142,-710.35711716,0.00019328,2]
[363670823,1748807442151,-500.0,0.00019328,2]
[363670824,1748807442160,-500.0,0.00019328,2]
[363670825,1748807442170,-710.35711716,0.00019328,2]
[363670826,1748807442179,-500.0,0.00019328,2]
[363670827,1748807442189,-710.35711716,0.00019328,2]
[363670828,1748807442207,-710.35711716,0.00019328,2]
[363670829,1748807442222,-710.35711716,0.00019328,2]
[363670830,1748807442238,-710.35711716,0.00019328,2]
[363670831,1748807442250,-710.35711716,0.00019328,2]
[363670832,1748807442264,-710.35711716,0.00019328,2]
[363670833,1748807442277,-710.35711716,0.00019328,2]
[363670834,1748807442291,-792.04818563,0.00019328,2]
[363670835,1748807442306,-792.04818563,0.00019328,2]
[363670836,1748807442320,-792.04818563,0.00019328,2]
[363670837,1748807442335,-792.04818563,0.00019328,2]
[363670838,1748807442349,-32425.07483976,0.00019329,2]
[363670839,1748807442364,-168.3888056,0.00019343,2]
[363670841,1748807442377,-174.61919141,0.00019398,2]
[363670843,1748807442390,-430.0,0.00019452,2]
[363670845,1748807442403,-624.76,0.00019452,2]
[363670846,1748807442419,-459.63,0.00019452,2]
[363670847,1748807442434,-438.99,0.00019452,2]
[363670848,1748807442448,-430.0,0.00019452,2]
[363670849,1748807442458,-430.0,0.00019452,2]
[363670851,1748807442471,-744.51,0.00019452,2]
[363670853,1748807442483,-635.39,0.00019452,2]
[363670855,1748807442498,-409.45,0.00019452,2]
[363670856,1748807442510,-838.7,0.00019452,2]
[363670857,1748807442525,-1060.09,0.00019452,2]
[363670858,1748807442538,-798.82,0.00019452,2]
[363670859,1748807442553,-1014.48,0.00019452,2]
[363670860,1748807442568,-488.15,0.00019452,2]
[363670861,1748807442581,-783.73,0.00019452,2]
[363670862,1748807442592,-662.27,0.00019452,2]
[363670863,1748807442602,-430.0,0.00019452,2]
[363670864,1748807442614,-181.08010149,0.00019453,2]
[363670865,1748807442628,-187.78006525,0.00019508,2]
[363670866,1748807442642,-3579.38185196,0.00019555,2]
[363670867,1748807442656,-194.72792766,0.00019563,2]
[363670868,1748807442667,-510.712,0.00019576,2]
[363670869,1748807442678,-178.59002559,0.00019576,2]
[363670870,1748807442691,-201.93286099,0.00019618,2]
[363670871,1748807442703,-500.0,0.00019654,2]